Cogmind - Beta 14 *** ADVENTURER MODE // 2024.09.03 @ 23:41:10 Player: Mbreton Result: Destroyed by S-27 Virus with Autogun Performance ------------- Evolutions (1) 500 Regions Visited (5) 1000 Robots Destroyed (21) 105 Value Destroyed (533) 533 Prototype IDs (2) 40 Alien Tech Used (0) 0 Bonus (948) 948 TOTAL SCORE: 3126 Bonus ------- Follower Combat Kills 445 Met Imprinter 300 Was Imprinted 300 Friendly Fire -97 Cogmind --------- Core Integrity 0/400 Matter 232/300 Energy 98/100 System Corruption 0% Temperature Cool (0) Movement Core (50) Location -6/Proximity Caves Parts ------- > --- POWER (1) -------- (None) > --- PROPULSION (2) --- (None) > --- UTILITY (4) ------ Makeshift Hacking Suite > --- WEAPON (2) ------- (None) > --- INVENTORY (5) ---- Large Storage Unit Relay Coupler [Programmer] (88) Relay Coupler [Programmer] (100) Relay Coupler [Programmer] (87) Makeshift System Restoration Module Peak State ------------ > --- POWER ------------ Light Nuclear Core > --- PROPULSION ------- Compact Wheel Backup Propulsion III > --- UTILITY ---------- Large Storage Unit Structural Scanner Makeshift Hacking Suite > --- WEAPON ----------- Assault Rifle Mini Grenade Launcher > --- INVENTORY -------- Light Ion Engine Large Storage Unit Propulsion Shielding Hardened Light Armor Plating Relay Coupler [Programmer] Relay Coupler [Programmer] Relay Coupler [Programmer] Relay Coupler [Programmer] Makeshift System Restoration Module Beam Cannon Assault Rifle Assault Rifle Datajack Mining Laser [Rating: 20] Favorites ----------- Power Light Nuclear Core Engine Light Ion Engine Power Core Light Nuclear Core Propulsion Compact Wheel Wheel Compact Wheel Hover Unit Backup Propulsion III Utility Structural Scanner Device Structural Scanner Storage Large Storage Unit Hackware Makeshift Hacking Suite Weapon Assault Rifle Energy Cannon Beam Cannon Ballistic Gun Assault Rifle Launcher Mini Grenade Launcher Special Weapon Mining Laser Special Melee Weapon Datajack Build | -11 -10 -9 -9 -7 -6 ------- Run | Yrd Mat Mat Min Zio Pro Slots Evolved 2 | . . 2 . . . Power . | . . . . . . Propulsion . | . . . . . . Utility 2 | . . 2 . . . Weapon . | . . . . . . Parts Attached 26 | 6 7 2 1 3 7 Power 3 | 1 1 . . . 1 Engine 2 | 1 . . . . 1 Core 1 | . 1 . . . . Reactor . | . . . . . . Propulsion 4 | 2 1 1 . . . Treads . | . . . . . . Leg . | . . . . . . Wheel 4 | 2 1 1 . . . Hover . | . . . . . . Flight . | . . . . . . Utility 4 | 1 1 1 . 1 . Device 1 | . 1 . . . . Storage 2 | 1 . 1 . . . Processor . | . . . . . . Hackware 1 | . . . . 1 . Protection . | . . . . . . Artifact . | . . . . . . Weapon 15 | 2 4 . 1 2 6 Energy Gun . | . . . . . . Energy Cannon 3 | . 1 . . 1 1 Ballistic Gun 8 | 2 2 . . 1 3 Ballistic Cannon . | . . . . . . Launcher 1 | . . . 1 . . Special Weapon 2 | . 1 . . . 1 Impact Weapon . | . . . . . . Slashing Weapon . | . . . . . . Piercing Weapon . | . . . . . . Special Melee Weapon 1 | . . . . . 1 Unidentified Prototypes . | . . . . . . Parts Lost 12 | . 2 . 1 . 9 Power 1 | . . . . . 1 Propulsion 3 | . . . 1 . 2 Utility 1 | . . . . . 1 Weapon 7 | . 2 . . . 5 Highest Loss Streak 4 | . 1 . 1 . 4 To Critical Strikes . | . . . . . . Average Slot Usage (%) 80 | . 94 77 70 86 73 Engine 1 | . 4 . . . 1 Core 7 | . 9 11 11 11 3 Wheel 12 | . 27 22 15 11 6 Hover 7 | . . . . 10 10 Device 11 | . 11 11 11 11 10 Storage 11 | . 14 11 11 11 10 Hackware 7 | . . . . 10 11 Energy Cannon 2 | . 10 11 4 . . Ballistic Gun 11 | . 14 11 11 10 10 Launcher 6 | . . . 6 11 6 Peak Build Rating 20 | 6 9 10 11 20 20 Average Rating 15 | 3 7 9 10 19 16 On Entrance 9 | . 6 9 10 10 20 Naked Turns . | . . . . . . Heaviest Build 36 | 11 16 36 31 30 29 Greatest Support 32 | 32 32 32 32 16 16 Greatest Overweight (x) 9 | . . 1 1 9 3 Average Overweight (x) . | . . . . 1 1 Largest Inventory Capacity 15 | 8 8 15 15 15 15 Average Capacity 13 | 5 8 15 15 15 14 Most Carried 15 | 2 7 12 14 15 14 Average Carried 11 | . 4 10 13 14 12 Final Capacity 15 | 8 8 15 15 15 5 Final Carried 14 | . 7 11 14 14 5 Class Distribution -------------------- 68% | Hacker-Mutant 31% | Mutant Dominant Class ---------------- Mutant | -10/Materials Mutant | -9/Materials Mutant | -9/Mines Hacker-Mutant | -7/Zion Hacker-Mutant | -6/Proximity Caves Resources | -11 -10 -9 -9 -7 -6 ----------- Run | Yrd Mat Mat Min Zio Pro Matter Collected 618 | 149 123 157 4 50 135 Remotely . | . . . . . . Salvage Created 530 | . 230 157 11 . 132 Parts 44 | . 25 12 2 . 5 Haulers Intercepted . | . . . . . . Recyclers Shooed . | . . . . . . Parts Field Recycled . | . . . . . . Retrieved Matter . | . . . . . . Parts Self-Destructed 32 | . . . . . 32 Prevented 3 | . . . . . 3 Kills | -11 -10 -9 -9 -7 -6 ------- Run | Yrd Mat Mat Min Zio Pro Combat Hostiles Destroyed 20 | . 10 5 2 . 3 Guns 6 | . 3 1 . . 2 Cannons 11 | . 7 4 . . . AOE 3 | . . . 2 . 1 Classes Destroyed 4 | . 3 1 . . . Worker 1 | . 1 . . . . Swarmer 11 | . 6 3 2 . . Grunt 7 | . 4 . . . 3 Sentry 2 | . . 2 . . . Best Kill Streak 3 | . 3 3 2 . 2 Combat Bots Only 3 | . 3 3 2 . 2 Max Kills in Single Turn 2 | . 1 2 1 . 1 Gunslinging . | . . . . . . Exploded 1 | . . . 1 . 1 Melee . | . . . . . . Uniques/NPCs Destroyed . | . . . . . . Combat | -11 -10 -9 -9 -7 -6 -------- Run | Yrd Mat Mat Min Zio Pro Hostile Shots Fired 175 | . 50 26 14 . 85 Missed 52 | . 13 10 2 . 27 Damage Taken 1382 | . 308 127 87 . 860 Core 458 | . 54 31 36 . 337 Absorbed by Shields . | . . . . . . Ignored by Resistances 409 | . 96 40 30 . 243 Regen/Repaired (Parts) 24 | . 12 . . 12 . Core Remaining (%) 89 | 100 78 . . . . Volleys Fired 70 | . 26 13 4 3 24 Largest 2 | . 2 2 2 1 2 Hottest 120 | . 120 80 50 60 80 Shots Fired 120 | . 46 26 5 3 40 Gun 67 | . 21 13 2 2 29 Cannon 42 | . 22 13 . 1 6 Launcher 8 | . . . 3 . 5 Special 3 | . 3 . . . . Kinetic 67 | . 21 13 2 2 29 Thermal 45 | . 25 13 . 1 6 Explosive 8 | . . . 3 . 5 Electromagnetic . | . . . . . . Robot Hit Streak 14 | . 9 6 1 . 14 Robot Miss Streak 3 | . 2 3 1 . 2 Penetration Max . | . . . . . . Secondary Targets . | . . . . . . Shots Hit Robots 82 | . 34 15 1 . 32 Core Hits 46 | . 17 8 4 . 17 Critical Kills . | . . . . . . Critical Parts Destroyed . | . . . . . . Critical Strikes . | . . . . . . Melee Attacks . | . . . . . . Impact . | . . . . . . Slashing . | . . . . . . Piercing . | . . . . . . Sneak Attacks . | . . . . . . Combat Hostiles . | . . . . . . Follow-up Attacks . | . . . . . . Damage Inflicted 1756 | . 530 235 319 . 672 Guns 595 | . 195 111 . . 289 Cannons 475 | . 263 124 . . 88 Explosions 614 | . . . 319 . 295 Melee . | . . . . . . Ramming . | . . . . . . Kinetic 595 | . 195 111 . . 289 Thermal 547 | . 335 124 . . 88 Explosive 614 | . . . 319 . 295 Electromagnetic . | . . . . . . Impact . | . . . . . . Slashing . | . . . . . . Piercing . | . . . . . . Highest Corruption . | . . . . . . Average Corruption . | . . . . . . Corruption Purged . | . . . . . . Corruption Blocked . | . . . . . . Overload Shots . | . . . . . . Overflow Damage . | . . . . . . Projectiles . | . . . . . . Explosions . | . . . . . . Melee . | . . . . . . Knockbacks . | . . . . . . Impact . | . . . . . . Kinetic . | . . . . . . Secondary . | . . . . . . Self-Inflicted Damage 45 | . . . 23 . 22 Shots 2 | . . . 1 . 1 Rammed . | . . . . . . Targets Rammed . | . . . . . . Kicked . | . . . . . . Crushed . | . . . . . . Highest Temperature 190 | . 190 75 . 18 90 Average Temperature 59 | . 79 23 . 13 39 Received Heat Transfer 468 | . 156 18 . . 294 Siege Activations . | . . . . . . Robots Corrupted . | . . . . . . Combat Hostiles . | . . . . . . Parts Fried . | . . . . . . Impact Corruptions . | . . . . . . Robots Melted . | . . . . . . Combat Hostiles . | . . . . . . Parts Melted 1 | . . 1 . . . Heat Transferred 1149 | . 705 259 . . 185 Parts Sabotaged 4 | . . . . . 4 Parts Stolen . | . . . . . . Parts Stripped . | . . . . . . Power Chain Reactions . | . . . . . . Alert | -11 -10 -9 -9 -7 -6 ------- Run | Yrd Mat Mat Min Zio Pro Peak Influence 289 | . 289 261 172 . . Initial 85 | . . 32 85 . . Average 116 | . 116 125 133 . . Maximum Alert Level 1 | . 1 1 . . . Low Security (%) 85 | 100 76 83 100 . . Level 1 14 | . 23 16 . . . Level 2 . | . . . . . . Level 3 . | . . . . . . Level 4 . | . . . . . . Level 5 . | . . . . . . High Security . | . . . . . . Max Security . | . . . . . . Squads Dispatched 4 | . . 3 . . 1 Investigation . | . . . . . . Extermination . | . . . . . . Reinforcement 3 | . . 3 . . . Assault 1 | . . . . . 1 Garrison . | . . . . . . Intercept . | . . . . . . Searches Triggered . | . . . . . . Construction Impeded . | . . . . . . Haulers Reinforced . | . . . . . . Active Scanning Responses . | . . . . . . Cargo Convoy Interrupts . | . . . . . . Stealth | -11 -10 -9 -9 -7 -6 --------- Run | Yrd Mat Mat Min Zio Pro Distress Signals . | . . . . . . Communications Jammed . | . . . . . . Distress Signals . | . . . . . . Times Spotted 61 | . 17 12 3 . 29 Peak Tracking Total 9 | . 5 4 3 . 9 Tactical Retreats 1 | . . . . . 1 Traps | -11 -10 -9 -9 -7 -6 ------- Run | Yrd Mat Mat Min Zio Pro Traps Triggered . | . . . . . . Indirectly . | . . . . . . Trap Hack Attempts . | . . . . . . Triggered . | . . . . . . Disarmed . | . . . . . . Reprogrammed . | . . . . . . Reused . | . . . . . . Traps Extracted . | . . . . . . Installed . | . . . . . . Triggered . | . . . . . . Most Traps Carried 3 | . . . 3 3 . Machines | -11 -10 -9 -9 -7 -6 ---------- Run | Yrd Mat Mat Min Zio Pro Machines Disabled 2 | . 1 1 . . . Max in Single Turn 1 | . 1 1 . . . Machines Repaired . | . . . . . . Machines Dismantled . | . . . . . . Machines Sabotaged . | . . . . . . Overloaded Fab Kills . | . . . . . . Hacking | -11 -10 -9 -9 -7 -6 --------- Run | Yrd Mat Mat Min Zio Pro Machines Accessed 7 | . 4 3 . . . Terminals 4 | . 2 2 . . . Fabricators . | . . . . . . Repair Stations 1 | . 1 . . . . Recycling Units 1 | . 1 . . . . Scanalyzers 1 | . . 1 . . . Garrison Access . | . . . . . . Total Hacks 15 | . 9 6 . . . Successful 11 | . 7 4 . . . Failed 4 | . 2 2 . . . Catastrophic . | . . . . . . Database Lockouts . | . . . . . . Manual . | . . . . . . Terminals 8 | . 5 3 . . . Fabricators . | . . . . . . Repair Stations 2 | . 2 . . . . Recycling Units 2 | . 2 . . . . Scanalyzers 3 | . . 3 . . . Garrison Access . | . . . . . . Terminal Hacks 5 | . 4 1 . . . Prototype ID Bank 1 | . 1 . . . . Emergency Access Points 1 | . 1 . . . . Locate Traps 2 | . 1 1 . . . Zone Layout 1 | . 1 . . . . Fabricator Hacks . | . . . . . . Repair Station Hacks 2 | . 2 . . . . Scan Component 1 | . 1 . . . . Repair 1 | . 1 . . . . Recycling Unit Hacks 1 | . 1 . . . . Retrieve Components 1 | . 1 . . . . Scanalyzer 3 | . . 3 . . . Insert Component 1 | . . 1 . . . Analyze 2 | . . 2 . . . Garrison Access Hacks . | . . . . . . Unauthorized Hacks . | . . . . . . Terminals . | . . . . . . Fabricators . | . . . . . . Repair Stations . | . . . . . . Recycling Units . | . . . . . . Scanalyzers . | . . . . . . Garrison Access . | . . . . . . Data Cores Recovered . | . . . . . . Used . | . . . . . . Hacking Detections 3 | . . 3 . . . Full Trace Events 1 | . . 1 . . . Feedback Events . | . . . . . . Feedback Blocked . | . . . . . . Robot Schematics Acquired 3 | . . . . 3 . Robots Built . | . . . . . . Authchips . | . . . . . . Time . | . . . . . . Total Robot Build Rating . | . . . . . . Part Schematics Acquired 13 | . . . . 13 . Parts Built . | . . . . . . Authchips . | . . . . . . Time . | . . . . . . Total Part Build Rating . | . . . . . . Parts Repaired 1 | . 1 . . . . Time 26 | . 26 . . . . Parts Recycled . | . . . . . . Recycled Matter . | . . . . . . Retrieved Matter . | . . . . . . Retrieved Components 2 | . 2 . . . . Parts Scanalyzed 1 | . . 1 . . . Part Schematics Acquired . | . . . . . . Parts Damaged . | . . . . . . Bothacking | -11 -10 -9 -9 -7 -6 ------------ Run | Yrd Mat Mat Min Zio Pro Used RIF Installer . | . . . . . . Robots Hacked . | . . . . . . Non-combat . | . . . . . . Combat . | . . . . . . Robot Hacks Applied . | . . . . . . Relay Couplers Released . | . . . . . . Fabnet Peak Effective % . | . . . . . . Robots Rewired . | . . . . . . Allies Hacked . | . . . . . . Hacks Repelled . | . . . . . . Allies | -11 -10 -9 -9 -7 -6 -------- Run | Yrd Mat Mat Min Zio Pro Total Allies 9 | . . . 5 4 . Largest Group 6 | . . . 5 6 6 Highest-Rated Group 181 | . . . 80 181 181 Highest-Rated Ally 41 | . . . 31 41 41 Total Orders . | . . . . . . Ally Attacks 54 | . . . 8 . 46 Total Damage 1069 | . . . 84 . 985 Kills 12 | . . . 1 . 11 Allies Corrupted . | . . . . . . Allies Melted . | . . . . . . Intel | -11 -10 -9 -9 -7 -6 ------- Run | Yrd Mat Mat Min Zio Pro Robot Analysis Total . | . . . . . . Derelict Logs Recovered 2 | . . . 1 . 1 Drone Launches . | . . . . . . Drone Recoveries . | . . . . . . Exploration | -11 -10 -9 -9 -7 -6 ------------- Run | Yrd Mat Mat Min Zio Pro Turns Passed 3912 | 70 566 278 297 1227 1474 Spaces Moved 2899 | 62 435 228 247 928 999 Core 54 | 7 . . . 1 46 Treads . | . . . . . . Legs . | . . . . . . Wheels 2670 | 55 435 228 247 926 779 Hover 175 | . . . . 1 174 Flight . | . . . . . . Fastest Speed 50 | 50 100 100 100 115 50 Average Speed 119 | 94 100 100 107 115 139 Slowest Speed 500 | 100 100 115 115 500 320 Overloaded Moves . | . . . . . . Propulsion Burnouts . | . . . . . . Robots Hopped . | . . . . . . Cave-ins Triggered . | . . . . . . Exploration Rate (%) 54 | 3 68 27 55 84 89 Regions Visited 5 Branch Regions 3 Pre-discovered Areas . | . . . . . . Known Exits Taken . | . . . . . . Unknown Exits Taken 5 | 1 1 1 1 1 . Scrap Searched 3 | . . . . 2 1 Spaces Dug . | . . . . . . Terrain Destroyed 69 | . . . 29 . 40 Melee . | . . . . . . Projectile . | . . . . . . AOE 69 | . . . 29 . 40 Terrain Rammed . | . . . . . . Walls Destroyed . | . . . . . . Machines Disabled . | . . . . . . Actions | -11 -10 -9 -9 -7 -6 --------- Run | Yrd Mat Mat Min Zio Pro Total 3231 | 73 515 251 272 1081 1039 Wait 190 | . 31 2 18 135 4 Move 2894 | 61 434 227 246 927 999 Hop . | . . . . . . Pick Up 34 | 6 14 5 3 6 . Fast Attach . | . . . . . . Attach 21 | 6 5 2 . 1 7 Detach 2 | . . 1 . . 1 Swap 6 | . 2 . 1 2 1 Drop 14 | . 3 1 . 7 3 Fire 70 | . 26 13 4 3 24 Melee . | . . . . . . Ram . | . . . . . . Kick . | . . . . . . Crush . | . . . . . . Escape Stasis . | . . . . . . Rewire . | . . . . . . Trap . | . . . . . . Miscellaneous . | . . . . . . Route ------- -11/Scrapyard -10/Materials (discovered 3 exits: *Mat / [*Min x2]) -9/Materials (discovered 2 exits: [*Min x2]) -9/Mines -7/Zion -6/Proximity Caves History --------- Turn | Location | Event 19 | -11/Scrapyard | Discovered new exit (range 16) 71 | -11/Scrapyard | Entered Materials 101 | -10/Materials | Discovered new exit (range 9) 270 | -10/Materials | Discovered new exit (range 14) 305 | -10/Materials | Build established: Mutant 528 | -10/Materials | Discovered new exit (range 3) 592 | -10/Materials | Repaired Com. Wheel 637 | -10/Materials | Entered another Materials area 637 | -9/Materials | Evolved 2 slots: Utility x2 656 | -9/Materials | Discovered new exit (range 4) 759 | -9/Materials | Discovered new exit (range 6) 915 | -9/Materials | Entered Mines 924 | -9/Mines | Met a Derelict bent on vengeance 932 | -9/Mines | Found a hidden stash of uninstalled traps 990 | -9/Mines | Learned location of 1 exit from Materials 1165 | -9/Mines | Assisted by bots powering up and referring to "LRC-V3" 1210 | -9/Mines | A Derelict revealed a hidden shortcut to a safe place 1212 | -9/Mines | Entered Zion 1212 | -7/Zion | Accompanied by 3 allies 1262 | -7/Zion | Led the pair of lost Derelicts to a safe place 1367 | -7/Zion | Found Relay Coupler [Programmer] 1369 | -7/Zion | Found Relay Coupler [Programmer] 1377 | -7/Zion | Found Relay Coupler [Programmer] 1379 | -7/Zion | Found Relay Coupler [Programmer] 1545 | -7/Zion | Build established: Hacker-Mutant 1700 | -7/Zion | Met Imprinter 1719 | -7/Zion | Imprinted 1721 | -7/Zion | Declared Zion's savior 2076 | -7/Zion | Given A8's code to call for help 2230 | -7/Zion | Discovered new exit (range 15) 2439 | -7/Zion | Entered Proximity Caves 2439 | -6/Proximity Caves | Accompanied by 6 allies 2510 | -6/Proximity Caves | Learned 4 Factory zone layouts 2579 | -6/Proximity Caves | P-60 Hacker assimilated allied Trooper 2a 3373 | -6/Proximity Caves | Core integrity fell below 50% 3413 | -6/Proximity Caves | Lost 4 parts (1n3w) 3858 | -6/Proximity Caves | Attracted the attention of an 0b10 outpost 3886 | -6/Proximity Caves | Attracted the attention of an 0b10 checkpoint 3905 | -6/Proximity Caves | Core integrity fell below 20% 3913 | -6/Proximity Caves | Destroyed by S-27 Virus with Autogun Last Messages --------------- Propulsion Shielding fries itself beyond repair. Penetrated by Slug. Structural Scanner destroyed. Segregator fries itself beyond repair. Adv. Heat Sink fries itself beyond repair. Cesium-ion Thruster fries itself beyond repair. Penetrated by Slug. Y-54 Guardian: "INTERCEPTING UNREGISTERED DERELICT." Dropped Hrd. Light Armor Plating. Dropped Lrg. Storage Unit. Dropped Propulsion Shielding. Relay Coupler [Programmer] fries itself. R7-WXX(M) destroyed. Penetrated by Slug. Assault Rifle destroyed. Lgt. Antimatter Reactor fries itself beyond repair. Assault Rifle destroyed. G-50 Soldier misfires. Map ----- +----------------------------------------------------+ | ################ ###???????????????????? | | ## ##????????????????????? | | ## ##### ###????????????????????? | | # ## ##### ##?????????????????????? | | # ### ##### ##?????????????????????? | | #### ### ##?????????????????????? | | #### ## ###????????????????????? | | # ##### ######?????????????????? | | ## ##### [ ##?????????????????? | | ## #### |!######## ##?????????????????? | | #### ####* !*!# """"# ##?????????????????? | | #### ###%= =%/=# =%* # #??????????????????? | | ??## "%"!! =%%!/% # #??????????????????? | | ??## #### [%#% #+## #??????????????????? | | ??## #### !# # #??????????????????? | | ??## #### #"""# l##?????????????????? | | ?? ### Y ###### g #?????????????????? | | ???? ### ###???????????????? | | ???? ?## ### ##??????????????? | | ???????## # ## g Y#?## #??????????????? | | ??????? # ##### ##?# #??????????????? | | ??????? ##### ### #??????????????? | | ?????? ####???##gg ##??????????????? | | ????? #####???## ##???????????????? | | ????? ###??????# #????????????????? | | ????? ##???????# ## s@ #????????????????? | | ??????????????## #### ##???????????????? | | ?????????????## #### #???????????????? | | ?????????????# s #???????????????? | | ????????????# ## #???????????????? | | ????????????#####?## #???????????????? | | ???????????????????##########???????????????? | | ????????????????????????????????????????????? | | ????????????????????????????????????????????? | | ????????????????????????????????????????????? | | ????????????????????????????????????????????? | | ????????????????????????????????????????????? | | ????????????????????????????????????????????? | | ????????????????????????????????????????????? | | ????????????????????????????????????????????? | | ????????????????????????????????????????????? | | ????????????????????????????????????????????? | | ????????????????????????????????????????????? | | ????????????????????????????????????????????? | | ????????????????????????????????????????????? | | ????????????????????????????????????????????? | | ????????????????????????????????????????????? | | | | | | | +----------------------------------------------------+ Best States ------------- Heat Dissipation 28 Energy Generation 14 Energy Capacity 160 Matter Stores 300 Matter Capacity 300 Sight Range 16 Terrain Scan Density 10 Resistance: KI 20 Resistance: TH 20 Resistance: EX 20 Resistance: EM 20 Resistance: I 20 Resistance: S 20 Resistance: P 20 Evasion (%) 50 Offensive Hacking 21 Item Schematics ----------------- Adv. Melee Analysis Suite | -7/Zion | Archive Shock Absorption System | -7/Zion | Archive Powered Hammer | -7/Zion | Archive Hvy. Flak Cannon | -7/Zion | Archive Imp. Weapon Cycler | -7/Zion | Archive Med. Reactive Plating | -7/Zion | Archive Coolant Injector | -7/Zion | Archive Lgt. Fission Core | -7/Zion | Archive Fission Core | -7/Zion | Archive Hvy. Missile Launcher | -7/Zion | Archive Adv. Terrain Scanner | -7/Zion | Archive Imp. Shield Generator | -7/Zion | Archive Imp. Corruption Screen | -7/Zion | Archive Robot Schematics ------------------ W-25 Informer | -7/Zion | Archive S-27 Virus | -7/Zion | Archive M-14 Sweeper | -7/Zion | Archive Fabricated ------------ Nothing Alien Tech Used ----------------- None Achievements -------------- None Challenges ------------ None Game ------ Seed GravityThrowingSteel Manual? 0 Play Time 00:34:23 Cumulative 17.0 hours Start 2024.09.03 @ 23:07:43 End 2024.09.03 @ 23:41:10 Sessions 1 Manual Loads 0 Difficulty Adventurer Special Mode None Game No. 11 Rogue 0 Adventurer 11 Explorer 0 Win Type - Total 0 Types 0/0/0/0/0/0/0/0/0 Lore% 8 Gallery% 19 Achievement% 18 Wizard Run 0 Options --------- Layout 1 ASCII 0 Keyboard 0 Movement Mouse Keybinds 0 Fullscreen 1 Font 24/Smallcaps Map View 50x35 Zoom Use 61% Tactical HUD 0 Map Filters NONE Filters NONE Steam 1 RUN: 4a3465a2-5068-475b-af20-b06e03364acf